bitfinex/quotes_ETHUSD_20250823
["timestamp","ask_amount","ask_price","bid_price","bid_amount"]
[1755918345746,0.3047,4703.6,4703.5,0.1064]
[1755918345975,0.3047,4703.6,4702.8,0.02]
[1755918345976,0.7761,4703.6,4702.8,0.02]
[1755918346365,0.4714,4703.5,4702.8,0.02]
[1755918346561,0.3037,4702.9,4702.8,0.02]
[1755918347165,0.7751,4702.9,4702.8,0.02]
[1755918347886,0.7751,4702.9,4702.4,1.635]
[1755918348092,0.001,4703.6,4702.5,0.66]
[1755918348268,0.446,4703.5,4702.5,0.68126528]
[1755918348665,0.446,4703.5,4702.5,0.66]
[1755918350886,0.446,4703.5,4702.7,0.66]
[1755918351893,0.001,4703.6,4702.7,3.66]
[1755918352267,0.447,4703.6,4702.7,3.66]
[1755918355986,0.001,4703.6,4703.5,0.7664]
[1755918356294,0.001,4703.6,4703.5,4.5474]
[1755918356823,0.758,4703.6,4703.5,4.5474]
[1755918357320,0.758,4703.6,4703.5,3.8874]
[1755918358998,0.758,4703.6,4703.5,0.1064]
[1755918360234,0.001,4703.6,4703.5,0.8374]
[1755918360435,0.001,4703.6,4703.5,3.8818]
[1755918360796,0.001,4703.6,4703.5,3.90306076]
[1755918361015,0.001,4703.6,4703.5,3.8818]
[1755918361415,0.001,4703.6,4703.5,0.99548287]
[1755918361739,0.001,4703.6,4703.5,4.77548287]
[1755918362318,0.001,4703.6,4703.5,4.70448287]
[1755918363217,0.001,4703.6,4703.5,7.70448287]
[1755918363416,0.447,4703.6,4703.5,7.5464]
[1755918363640,0.758,4703.6,4703.5,4.5464]
[1755918364146,0.758,4703.6,4703.5,0.7664]
[1755918364343,0.758,4703.6,4703.5,4.5454]
[1755918364712,0.447,4703.6,4703.5,4.5454]
[1755918365115,0.001,4703.6,4703.5,4.5454]
[1755918365516,0.001,4703.6,4703.5,4.56666076]
[1755918365814,0.001,4703.6,4703.5,4.5454]
[1755918366028,0.001,4703.6,4703.5,4.6164]
[1755918367115,0.001,4703.6,4703.5,4.5454]
[1755918367622,0.001,4703.6,4703.5,0.7664]
[1755918368136,0.758,4703.6,4703.5,3.80026076]
[1755918368440,0.758,4703.6,4703.5,3.779]
[1755918369926,0.758,4703.6,4703.5,4.439]
[1755918369927,0.001,4703.6,4703.5,4.439]
[1755918370369,0.758,4703.6,4702.8,0.02]
[1755918370518,0.312,4703.6,4702.8,0.02]
[1755918370719,0.446,4703.5,4702.8,0.02]
[1755918371015,0.446,4703.5,4702.9,0.02126347]
[1755918371213,0.001,4703.6,4702.8,3.02]
[1755918371424,0.001,4703.6,4702.9,0.02126347]
[1755918371648,0.001,4703.6,4702.8,3.4921]
[1755918372351,0.001,4703.6,4702.5,1.634]
[1755918372523,0.311,4702.9,4702.4,0.004]
[1755918372723,0.446,4702.8,4702.4,3.782]
[1755918372944,0.311,4702.5,4702.4,3.782]
[1755918373152,0.757,4702.5,4702.4,0.004]
[1755918378132,0.8634,4702.5,4702.4,0.004]
[1755918380740,2.98992844,4702.5,4702.4,0.004]
[1755918381251,5.98992844,4702.5,4702.4,0.004]
[1755918381753,6.64992844,4702.5,4702.4,0.004]
[1755918382860,5.78698075,4701.5,4701.4,0.004]
[1755918383073,7.73408075,4701.5,4701.4,0.004]
[1755918383361,8.18978075,4701.5,4701.4,0.004]
[1755918383518,12.30070519,4701.5,4701.4,0.004]
[1755918384131,5.73572444,4701.5,4701.4,0.004]
[1755918384657,6.51372444,4701.5,4701.4,0.004]
[1755918385765,1.635,4701.5,4701.4,0.004]
[1755918386766,2.4028,4701.5,4701.4,0.004]
[1755918387267,6.1808,4701.5,4701.4,0.004]
[1755918388964,1.635,4701.5,4701.4,0.004]
[1755918390103,2.4028,4701.5,4701.4,0.004]
[1755918390504,1.9471,4701.5,4701.4,0.004]
[1755918390819,5.413,4701.5,4701.4,0.004]
[1755918390983,1.635,4701.5,4701.4,0.004]
[1755918391897,1.635,4701.5,4701.4,0.2924]
[1755918392086,3.778,4702.1,4701.4,0.2924]
[1755918392283,1.635,4702.2,4701.4,0.2924]
[1755918392488,1.635,4702.2,4701.5,0.4552698]
[1755918392807,0.1064,4701.8,4701.5,0.4552698]
[1755918392992,0.1064,4701.8,4701.7,0.2884]
[1755918394487,1.635,4703.0,4701.7,0.7436689]
[1755918394682,0.332779,4703.2,4701.8,1.11526845]
[1755918394888,0.332779,4703.2,4703.1,0.2884]
[1755918395190,3.798,4703.8,4701.6,1.635]
[1755918395191,3.798,4703.8,4702.4,0.434]
[1755918395719,0.02,4703.8,4703.4,0.2884]
[1755918397835,0.02,4703.8,4703.4,0.7224]
[1755918399325,0.7688,4703.5,4701.6,2.069]
[1755918400028,0.7688,4703.5,4701.7,0.66]
[1755918400433,0.7688,4703.5,4701.6,2.069]
[1755918401129,0.7688,4703.5,4701.7,0.66]
[1755918401522,0.7688,4703.5,4701.6,2.069]
[1755918401523,0.4557,4703.4,4701.6,1.635]
[1755918402130,2.581831,4703.4,4701.6,1.635]
[1755918402433,2.12625114,4703.2,4701.6,1.635]
[1755918402641,2.12617069,4703.3,4701.3,0.004]
[1755918402829,0.4557,4703.1,4701.3,0.004]
[1755918403027,2.12647477,4702.7,4701.3,0.004]
[1755918403210,1.635,4702.6,4701.3,0.004]
[1755918403536,2.0907,4702.6,4701.3,0.004]
[1755918403838,0.4557,4702.5,4701.3,0.004]
[1755918404741,0.1064,4701.6,4701.3,0.004]
[1755918405918,0.33277596,4702.7,4701.5,0.3096698]
[1755918406124,2.0907,4703.3,4701.5,0.8288]
[1755918406125,0.1064,4702.5,4701.5,0.8288]
[1755918406446,0.1064,4702.5,4701.8,0.1064]
[1755918407146,0.1064,4702.5,4701.4,1.639]
[1755918407147,0.1064,4702.8,4702.4,0.2884]
[1755918407725,0.1074,4702.8,4702.4,0.2884]
[1755918407918,0.001,4702.8,4702.7,0.1064]
[1755918408117,0.001,4702.8,4702.7,0.8472]
[1755918408352,0.001,4702.8,4702.7,1.52846438]
[1755918409324,0.001,4702.8,4702.7,1.5072]
[1755918409523,0.001,4702.8,4702.7,8.2822]
[1755918417220,0.001,4702.8,4702.7,8.1758]
[1755918419526,0.001,4702.8,4702.7,3.2884]
[1755918419737,0.001,4702.8,4702.7,7.0594]
[1755918420158,0.001,4702.8,4702.7,7.7194]
[1755918420627,0.001,4702.8,4702.7,8.1718]
[1755918421454,0.001,4702.8,4702.7,3.9484]
[1755918421635,0.001,4702.8,4702.7,7.7194]
[1755918422034,0.001,4702.8,4702.7,7.431]
[1755918423495,0.001,4703.5,4702.8,3.66]
[1755918423767,0.001,4703.5,4703.4,0.9739]
[1755918424066,0.001,4703.6,4703.5,3.66]
[1755918424248,0.021,4703.8,4703.5,4.53562492]
[1755918424446,0.021,4703.8,4703.5,1.08322492]
[1755918424646,0.021,4703.8,4703.7,3.66]
[1755918425087,0.021,4703.8,4703.7,0.66]
[1755918425285,0.3332,4703.8,4703.7,3.77]
[1755918425586,0.7984,4703.8,4703.4,1.634]
[1755918425760,0.7984,4703.8,4703.3,3.77]
[1755918425939,0.3332,4703.8,4703.3,3.77]
[1755918426139,0.4652,4703.7,4703.3,2.73016662]
[1755918426356,0.3122,4703.4,4703.3,2.73016662]
[1755918426674,0.7774,4703.4,4703.0,3.77]
[1755918426837,0.3122,4703.4,4703.0,3.77]
[1755918427038,0.4652,4703.3,4703.1,0.02126257]
[1755918427239,0.3122,4703.2,4703.1,0.02126257]
[1755918427438,0.3122,4703.2,4703.0,3.8764]
[1755918427867,0.4652,4703.1,4703.0,3.8764]
[1755918428177,0.7774,4703.1,4703.0,3.8764]
[1755918429766,0.3122,4703.1,4703.0,4.55766302]
[1755918429968,0.021,4703.8,4703.1,3.66]
[1755918430169,0.021,4703.8,4703.7,0.7664]
[1755918430369,0.021,4703.8,4703.7,9.1694]
[1755918434369,0.021,4703.8,4703.7,9.4833]
[1755918434781,0.02,4705.8,4703.8,3.66]
[1755918435052,0.4662,4708.9,4705.9,3.66]
[1755918435254,0.001,4708.9,4707.8,0.66]
[1755918435498,0.001,4708.9,4708.0,3.66]
[1755918435784,0.001,4708.9,4708.8,0.66]
[1755918436030,0.001,4708.9,4708.8,9.26033042]
[1755918436363,0.001,4709.3,4708.9,3.66]
[1755918436564,0.00514712,4712.2,4709.3,0.66]
[1755918436565,0.4652,4711.3,4709.3,0.66]
[1755918436886,0.4652,4711.3,4709.7,0.9739]
[1755918437189,0.4652,4711.3,4709.7,5.80623042]
[1755918437489,0.00514712,4712.2,4709.8,3.66]
[1755918437697,0.00514712,4712.2,4710.7,3.9739]
[1755918438011,0.00514712,4712.2,4711.0,0.66]
[1755918438288,0.00514712,4712.2,4711.2,3.66]
[1755918438462,0.00514712,4712.2,4711.3,0.85833042]
[1755918438783,0.00514712,4712.2,4711.3,0.66]
[1755918438963,0.00514712,4712.2,4711.3,1.15764967]
[1755918439291,0.00514712,4712.2,4711.3,1.65317523]
[1755918439486,0.00514712,4712.2,4711.3,1.63143816]
[1755918439889,0.3117,4711.4,4711.3,0.85573816]
[1755918440195,0.001,4711.4,4711.3,3.85573816]
[1755918440493,0.7734,4711.4,4711.3,6.96173816]
[1755918440703,0.7734,4711.4,4711.3,0.19573816]
[1755918440856,0.7734,4711.4,4711.3,3.96173816]
[1755918441052,0.4627,4711.4,4708.4,33.23314562]
[1755918441256,0.4627,4711.4,4708.5,5.4]
[1755918441257,0.4617,4711.3,4708.5,5.4]
[1755918442288,0.4617,4711.3,4710.8,0.02]
[1755918443141,0.001,4711.4,4710.9,0.68122736]
[1755918443290,0.001,4711.4,4710.9,0.66]
[1755918443520,0.001,4711.4,4711.0,0.02122691]
[1755918443791,0.001,4711.4,4711.1,0.66]
[1755918443990,0.001,4711.4,4711.3,0.66]
[1755918444194,0.001,4711.4,4711.3,4.424]
[1755918444613,0.001,4711.4,4710.9,0.66]
[1755918444778,0.001,4711.4,4711.3,0.66]
[1755918445334,0.001,4711.4,4711.3,0.1064]
[1755918445626,0.001,4711.4,4711.3,3.8704]
[1755918445986,0.4627,4711.4,4711.3,0.1064]
[1755918446185,0.4627,4711.4,4711.3,3.8704]
[1755918447117,0.001,4711.4,4711.3,3.8704]
[1755918447690,0.4627,4711.4,4711.3,3.8704]
[1755918448118,0.001,4711.4,4711.3,4.5304]
[1755918448790,0.4627,4711.4,4711.3,0.1064]
[1755918448985,0.4627,4711.4,4711.3,3.8704]
[1755918449186,0.4627,4711.4,4711.1,3.764]
[1755918449392,0.4617,4711.3,4711.1,3.8704]
[1755918449593,0.4617,4711.2,4711.1,3.8704]
[1755918450521,0.4617,4711.2,4710.8,1.633]
[1755918450723,0.4617,4711.2,4710.3,0.1064]
[1755918450724,0.5681,4711.2,4710.3,0.1064]
[1755918451443,0.1064,4710.4,4709.9,3.766]
[1755918451736,0.4617,4710.3,4709.9,3.766]
[1755918451899,0.4617,4710.2,4709.9,3.766]
[1755918452315,0.4617,4711.0,4710.0,0.66]
[1755918452640,0.4617,4711.0,4710.4,0.1064]
[1755918453113,0.4617,4711.0,4710.5,0.19484462]
[1755918453310,0.1064,4711.1,4710.6,0.19484462]
[1755918453623,0.4617,4710.9,4710.7,0.19484462]
[1755918453826,0.001,4711.4,4710.8,0.19484462]
[1755918454030,0.001,4711.4,4711.0,0.66]
[1755918454321,0.001,4711.4,4711.3,0.7664]
[1755918454546,0.001,4711.4,4711.3,0.96133404]
[1755918455407,0.001,4711.9,4711.4,0.66]
[1755918455739,0.001,4711.9,4711.6,0.66]
[1755918455894,0.001,4711.9,4711.7,0.19493404]
[1755918456090,0.001,4711.9,4711.8,0.30133404]
[1755918456846,0.4627,4711.9,4711.8,0.30133404]
[1755918457145,0.4627,4711.9,4710.4,3.77]
[1755918461151,0.001,4711.9,4710.5,0.66]
[1755918461319,0.001,4711.9,4710.5,3.66]
[1755918461717,0.001,4711.9,4710.6,0.02122871]
[1755918461920,0.001,4711.9,4710.7,0.66]
[1755918462348,0.001,4711.9,4710.6,0.66]
[1755918462548,0.001,4711.9,4710.7,0.4743]
[1755918463449,0.001,4712.4,4710.7,0.4743]
[1755918465451,2.0937,4713.2,4710.7,0.4743]
[1755918465452,1.632,4713.2,4710.7,0.4743]
[1755918467030,0.4617,4713.1,4710.8,3.762]
[1755918467214,0.4617,4713.1,4710.9,0.66]
[1755918467422,0.4617,4713.1,4712.1,0.1064]
[1755918467423,0.1064,4712.8,4712.1,0.1064]
[1755918469218,0.1064,4712.8,4712.2,0.19834992]
[1755918469443,0.1064,4712.8,4712.3,0.19834992]
[1755918469647,0.1064,4712.8,4712.4,0.21957052]
[1755918469851,0.4617,4713.6,4712.5,0.19834992]
[1755918470043,0.1064,4713.2,4712.6,0.21956962]
[1755918470238,0.1064,4713.2,4712.7,0.19834992]
[1755918470439,0.1064,4713.2,4712.8,0.19834992]
[1755918470653,0.1064,4713.2,4712.9,0.21956827]
[1755918470951,0.01,4713.6,4713.0,0.30474992]
[1755918471151,0.01,4713.6,4713.1,0.19834992]
[1755918471352,0.1174,4713.7,4713.2,0.21956692]
[1755918471521,0.011,4713.7,4713.3,0.30474992]
[1755918471721,0.011,4713.7,4713.4,0.19834992]
[1755918471932,0.4315,4713.6,4713.5,0.19834992]
[1755918472143,0.2999,4713.4,4712.7,0.1064]
[1755918472348,0.1064,4713.6,4712.8,0.19828549]
[1755918472550,0.011,4713.7,4712.9,0.85828549]
[1755918472758,0.011,4713.7,4713.0,0.19828549]
[1755918472958,0.011,4713.7,4713.1,0.19828549]
[1755918473165,0.011,4713.7,4713.2,0.19828549]
[1755918473464,0.011,4713.7,4713.3,0.19828549]
[1755918473631,0.2999,4713.4,4711.9,3.767]
[1755918473836,0.2999,4713.4,4712.2,0.19822211]
[1755918474046,0.2999,4713.4,4712.3,0.19822211]
[1755918474236,0.2999,4713.4,4712.4,0.19822211]
[1755918474432,0.4315,4713.3,4712.5,0.19822211]
[1755918474757,0.4315,4713.3,4712.6,0.19822211]
[1755918474959,0.4315,4713.3,4712.7,0.19822211]
[1755918475330,0.4315,4713.3,4712.8,0.19822509]
[1755918475537,0.4315,4713.2,4712.9,0.19822509]
[1755918475756,0.2999,4713.0,4712.8,0.02]
[1755918475960,0.2999,4713.0,4712.9,0.19820938]
[1755918476167,0.7314,4713.0,4712.9,0.19820938]
[1755918476465,0.001,4713.6,4712.9,0.19820938]
[1755918476670,0.001,4713.6,4713.0,0.19820938]
[1755918476962,0.001,4713.6,4713.1,0.19820938]
[1755918477171,0.2999,4713.2,4712.8,0.02]
[1755918477470,0.2999,4713.2,4712.9,0.19817557]
[1755918477675,0.2999,4713.2,4713.0,0.19817557]
[1755918477975,0.2999,4713.2,4713.1,0.19817557]
[1755918478160,0.001,4713.6,4713.1,0.19817557]
[1755918478472,0.001,4713.6,4712.8,0.02]
[1755918478473,0.4315,4713.5,4713.2,0.19817557]
[1755918478672,0.4315,4713.5,4713.3,0.19817557]
[1755918478841,0.4315,4713.5,4713.4,0.19817557]
[1755918479041,0.7314,4713.5,4713.4,0.19817557]
[1755918479953,0.001,4713.6,4713.4,0.19817557]
[1755918480184,0.001,4713.6,4713.5,0.19817557]
[1755918481655,0.001,4713.6,4712.7,0.4316]
[1755918481898,0.001,4713.6,4712.8,0.6812188]
[1755918482284,0.001,4713.6,4713.0,0.66]
[1755918482489,0.4325,4713.6,4712.1,1.7916425]
[1755918482672,0.1064,4712.9,4712.2,0.1064]
[1755918483994,0.4315,4713.2,4712.1,1.632]
[1755918484200,0.1064,4712.6,4712.1,1.632]
[1755918485396,1.631,4713.5,4712.2,0.45282151]
[1755918485599,0.1064,4712.9,4712.3,0.1064]
[1755918486397,1.631,4713.5,4711.8,0.02]
[1755918486398,0.2999,4712.4,4711.8,0.02]
[1755918486600,1.9309,4712.4,4711.8,0.02]
[1755918487061,0.4315,4712.3,4711.8,0.02]
[1755918487267,0.2999,4711.9,4711.8,0.02]
[1755918487798,0.4315,4712.2,4711.8,0.02]
[1755918488298,0.2999,4711.9,4711.8,0.02]
[1755918489997,1.631,4712.4,4711.8,0.02]
[1755918492875,1.631,4712.4,4711.8,0.024]
[1755918494169,0.2712,4711.9,4711.8,0.024]
[1755918494602,4.4621,4711.9,4711.8,0.024]
[1755918495192,2.82338612,4711.9,4711.8,0.024]
[1755918495391,6.58438612,4711.9,4711.8,0.024]
[1755918496106,6.91651138,4711.9,4711.8,0.024]
[1755918496308,7.02291138,4711.9,4711.8,0.024]
[1755918496992,10.68291138,4711.9,4711.8,0.024]
[1755918497367,14.24891138,4711.9,4711.8,0.024]
[1755918501210,10.48791138,4711.9,4711.8,0.024]
[1755918501609,3.0,4711.6,4711.3,0.004]
[1755918501781,3.1064,4711.4,4711.3,0.004]
[1755918501987,6.6284,4711.4,4711.3,0.004]
[1755918502185,6.9326,4711.4,4711.3,0.004]
[1755918502510,7.2647546,4711.4,4711.3,0.004]
[1755918503110,6.9605546,4711.4,4711.3,0.004]
[1755918503272,7.7215546,4711.4,4711.3,0.004]
[1755918503474,8.0257546,4711.4,4711.3,0.004]
[1755918504014,0.3321546,4711.4,4711.3,0.7437]
[1755918504173,4.0931546,4711.4,4711.3,0.7437]
[1755918504366,3.761,4711.4,4711.3,0.7437]
[1755918505112,1.632,4711.6,4711.3,0.7437]
[1755918505405,3.761,4711.7,4711.3,0.7437]
[1755918505406,3.761,4711.7,4711.4,0.4442]
[1755918505610,3.761,4711.7,4711.5,0.2955]
[1755918506095,1.632,4712.3,4711.5,0.2955]
[1755918506280,3.761,4712.2,4711.5,0.2955]
[1755918507083,3.761,4712.2,4711.3,0.004]
[1755918508594,1.632,4712.3,4711.3,0.004]
[1755918508916,3.761,4712.2,4711.3,0.004]
[1755918509219,3.761,4712.1,4711.3,0.004]
[1755918509377,3.761,4712.1,4711.4,0.4442]
[1755918509577,3.761,4712.1,4712.0,0.2955]
[1755918510000,3.761,4712.1,4711.5,0.004]
[1755918510578,1.632,4712.3,4711.5,0.004]
[1755918510876,3.761,4712.2,4711.5,0.004]
[1755918511558,1.632,4712.3,4711.5,0.004]
[1755918511734,3.76,4712.2,4711.6,0.19784233]
[1755918512057,3.76,4712.2,4711.7,0.19784233]
[1755918512341,3.76,4712.2,4711.8,0.19784233]
[1755918512640,3.76,4712.2,4711.9,0.19784233]
[1755918512801,3.76,4712.2,4712.0,0.19784233]
[1755918513000,3.76,4712.2,4712.1,0.19784233]
[1755918513229,4.5373,4712.2,4712.1,0.19784233]
[1755918513604,4.5373,4712.2,4712.1,0.19810372]
[1755918513943,3.76,4712.2,4712.1,0.19810372]
[1755918514234,3.8664,4712.2,4712.1,0.19810372]
[1755918515007,4.1706,4712.2,4712.1,0.19816422]
[1755918515208,8.1757,4712.2,4712.1,0.12456422]
[1755918515430,10.29785101,4712.2,4712.1,0.12456422]
[1755918515734,10.29785101,4712.2,4711.5,0.004]
[1755918515735,2.12242125,4711.6,4711.5,0.004]
[1755918515906,9.71862125,4711.6,4711.5,0.004]
[1755918516099,10.19172125,4711.6,4711.5,0.004]
[1755918516304,8.0693,4711.6,4711.5,0.004]
[1755918516505,7.5962,4711.6,4711.5,0.004]
[1755918517134,9.71862125,4711.6,4711.5,0.004]
[1755918517342,10.85172125,4711.6,4711.5,0.004]
[1755918519130,10.85072125,4711.6,4711.5,0.004]
[1755918519326,4.3093,4711.6,4711.5,0.004]
[1755918519538,3.532,4711.6,4711.5,0.004]
[1755918519740,3.769,4711.6,4711.5,0.004]
[1755918521219,0.01,4711.6,4711.5,0.7437]
[1755918521419,3.769,4711.6,4711.5,0.7437]
[1755918521911,3.769,4711.6,4711.5,0.2995]
[1755918525649,3.8754,4711.6,4711.5,0.2995]
[1755918527222,3.8754,4711.6,4711.5,0.20258744]
[1755918528855,3.8754,4711.6,4711.5,0.004]
[1755918529053,3.8754,4711.6,4711.5,0.2026152]
[1755918529358,4.1751,4711.6,4711.5,0.2026152]
[1755918530923,4.6474,4711.6,4711.5,0.2026152]
[1755918531122,0.1164,4711.6,4711.5,0.2026152]
[1755918531553,3.8744,4711.6,4711.5,0.2026152]
[1755918532526,0.1164,4711.6,4711.5,0.2026152]
[1755918532726,3.8744,4711.6,4711.5,0.5181152]
[1755918533556,3.8744,4711.6,4711.5,0.2026152]
[1755918534046,3.8734,4711.6,4711.5,0.5181152]
[1755918534745,3.8734,4711.6,4711.5,0.2026152]
[1755918535721,0.1164,4711.6,4711.5,0.2026152]
[1755918535956,3.8734,4711.6,4711.5,0.2026152]
[1755918536567,4.3097,4711.6,4711.5,0.2026152]
[1755918536763,4.3087,4711.6,4711.5,0.2026152]
[1755918537948,4.3087,4711.6,4711.5,0.004]
[1755918538260,4.3087,4711.6,4711.5,0.20292826]
[1755918539285,0.5527,4711.6,4711.5,0.51842826]
[1755918539583,0.1164,4711.6,4711.5,0.95072826]
[1755918539744,3.8724,4711.6,4711.5,0.95072826]
[1755918540772,0.1164,4711.6,4711.5,0.95072826]
[1755918541076,0.01,4711.6,4711.5,0.95072826]
[1755918541280,3.8724,4712.0,4711.5,0.95072826]
[1755918541450,0.1164,4712.0,4711.6,0.63122826]
[1755918541777,0.1164,4712.0,4711.9,0.3155]
[1755918541936,0.1164,4712.0,4711.9,0.51442826]
[1755918542470,0.8884,4712.0,4711.9,0.19892826]
[1755918542636,0.4161,4712.0,4711.9,0.19892826]
[1755918542969,3.8714,4712.0,4711.9,0.19892826]
[1755918543269,3.8714,4712.0,4711.5,0.004]
[1755918543457,3.765,4712.0,4711.5,0.004]
[1755918543660,0.1064,4711.6,4711.5,0.004]
[1755918543835,0.1064,4711.6,4711.5,0.3195]
[1755918544168,3.8614,4711.6,4711.5,0.3195]
[1755918546044,3.8604,4711.6,4711.5,0.7518]
[1755918547873,3.8704,4711.6,4711.5,0.7518]
[1755918549484,3.8704,4711.6,4711.5,0.3195]
[1755918549645,4.1014,4711.6,4711.5,0.004]
[1755918550162,0.1164,4711.6,4711.5,0.7518]
[1755918550542,0.01,4711.6,4711.5,0.7518]
[1755918551754,0.01,4711.7,4711.5,0.7518]
[1755918551964,0.1164,4711.9,4711.6,0.45352421]
[1755918552167,0.01,4711.9,4711.8,0.3155]
[1755918552369,0.01,4711.9,4711.8,0.7478]
[1755918553349,0.011,4712.1,4711.8,0.7478]
[1755918553746,0.011,4712.1,4712.0,0.66]
[1755918553949,0.011,4712.1,4712.0,0.4219]
[1755918554260,0.011,4712.1,4712.0,1.5142]
[1755918555488,0.011,4712.1,4712.0,1.69596053]
[1755918556149,0.011,4712.1,4712.0,1.67473812]
[1755918557692,0.011,4712.1,4712.0,4.80254942]
[1755918557894,0.011,4712.1,4712.0,8.53232701]
[1755918558096,0.011,4712.1,4712.0,8.86429162]
[1755918559181,0.011,4712.1,4712.0,5.11329162]
[1755918559380,0.011,4712.1,4712.0,8.86329162]
[1755918559785,0.001,4713.1,4712.1,3.66]
[1755918559993,0.001,4713.1,4712.5,40.45326668]
[1755918560194,0.001,4713.1,4712.5,42.41723129]
[1755918560386,0.001,4713.1,4712.5,42.86083129]
[1755918560995,0.001,4713.1,4712.5,42.96723129]
[1755918561304,0.001,4713.1,4712.5,42.86083129]
[1755918562485,0.001,4713.1,4712.5,42.52886668]
[1755918562688,0.001,4713.1,4712.5,2.3766]
[1755918563006,0.0831,4712.6,4712.5,1.632]
[1755918563173,0.001,4712.6,4712.0,3.91353812]
[1755918563605,0.001,4712.6,4712.1,3.0]
[1755918564128,0.001,4712.6,4712.0,0.16453812]
[1755918564712,0.001,4712.6,4712.5,0.301]
[1755918565080,0.001,4712.6,4712.1,0.66]
[1755918565280,0.001,4712.6,4712.3,3.66]
[1755918565486,0.2903,4712.1,4712.0,0.004]
[1755918565783,0.5306,4712.1,4712.0,0.004]
[1755918567703,2.65279604,4712.1,4712.0,0.004]
[1755918568013,0.5306,4712.1,4712.0,0.004]
[1755918568984,0.615636,4712.1,4712.0,0.004]
[1755918570840,6.39783204,4712.1,4712.0,0.004]
[1755918571413,6.50423204,4712.1,4712.0,0.004]
[1755918572783,10.25223204,4712.1,4712.0,0.004]
[1755918573848,10.36099362,4712.1,4712.0,0.004]
[1755918574022,10.5805796,4712.1,4712.0,0.004]
[1755918574722,10.5805796,4712.1,4712.0,1e-08]
[1755918574933,6.8325796,4712.1,4712.0,1e-08]
[1755918575089,10.5805796,4712.1,4712.0,1e-08]
[1755918577229,10.5815796,4712.1,4712.0,1e-08]
[1755918578847,21.1035796,4712.1,4712.0,1e-08]
[1755918580133,21.1035796,4712.1,4711.5,0.004]
[1755918580134,2.12242125,4711.6,4711.5,1e-08]
[1755918580306,2.12242125,4711.6,4711.0,0.004]
[1755918580307,2.7824663,4711.5,4711.3,1e-08]
[1755918580511,20.34281135,4711.4,4711.3,1e-08]
[1755918581043,20.79291135,4711.4,4711.3,1e-08]
[1755918581817,24.31091135,4711.4,4711.3,1e-08]
[1755918582019,23.03591135,4711.4,4711.3,1e-08]
[1755918584259,23.12100035,4711.4,4711.3,1e-08]
[1755918586231,23.12100035,4711.4,4709.2,0.4436]
[1755918586432,2.12345783,4709.3,4709.2,0.4436]
[1755918586752,10.87445782,4709.3,4709.2,0.301]
[1755918587118,11.42445782,4709.3,4709.2,0.301]
[1755918587320,14.42445782,4709.3,4709.2,0.301]
[1755918587510,2.12363821,4708.9,4708.8,0.4636]
[1755918587727,2.12363821,4708.9,4708.8,0.321]
[1755918587728,5.97803821,4708.9,4708.8,0.321]
[1755918588653,3.8544,4708.9,4708.8,0.7946]
[1755918589246,9.3480382,4708.9,4708.8,0.321]
[1755918589648,7.22439999,4708.9,4708.8,0.321]
[1755918589824,7.22439999,4708.9,4708.8,0.7946]
[1755918590653,3.47639999,4708.9,4708.8,0.7946]
[1755918590851,7.86164199,4708.9,4708.8,0.7946]
[1755918594762,7.86164199,4708.9,4708.8,0.321]
[1755918595759,0.744642,4708.9,4708.8,0.7946]
[1755918596054,3.8534,4708.9,4708.8,0.7946]
[1755918597150,0.1064,4708.9,4708.8,0.7946]
[1755918597349,3.746,4709.3,4708.8,0.77968085]
[1755918597552,0.1064,4709.2,4708.9,0.49483638]
[1755918597855,0.1064,4709.7,4709.0,0.1064]
[1755918598059,0.1064,4709.7,4709.1,0.32143548]
[1755918598254,0.1064,4709.7,4709.1,0.7738]
[1755918598459,0.1064,4709.7,4709.2,0.4736]
[1755918598622,0.1064,4709.7,4709.6,0.3002]
[1755918598829,0.1064,4709.7,4709.6,0.7738]
[1755918600364,0.1064,4710.4,4709.7,0.66]
[1755918600561,1.633,4711.4,4710.3,0.3002]
[1755918600861,0.1264,4710.8,4710.3,0.3002]
[1755918601063,0.1264,4710.8,4710.4,0.4736]
[1755918601229,0.1264,4710.8,4710.7,0.3002]
[1755918601428,0.1264,4710.8,4710.7,0.7738]
[1755918602444,0.02,4710.8,4710.7,0.8802]
[1755918603644,0.02,4710.8,4710.7,1.5402]
[1755918604130,0.02,4710.8,4710.7,1.56142826]
[1755918604332,0.02,4710.8,4710.7,1.5402]
[1755918604737,0.02,4710.8,4710.7,0.7738]
[1755918606057,0.02,4710.8,4710.2,0.4736]
[1755918606369,0.02,4710.8,4707.8,0.024]
[1755918606370,0.3237,4710.8,4709.5,0.4736]
[1755918606673,0.3237,4710.8,4708.2,1.633]
[1755918606674,0.02,4710.8,4710.7,0.3002]
[1755918606836,3.763,4710.8,4710.7,0.3002]
[1755918607043,3.763,4710.8,4710.7,0.7738]
[1755918607572,0.02,4710.8,4710.7,0.7738]
[1755918609483,0.02,4710.8,4710.7,1.4338]
[1755918610337,0.02,4710.8,4710.7,1.45502826]